bitfinex/quotes_SOLUSD_20250802
["timestamp","ask_amount","ask_price","bid_price","bid_amount"]
[1754152457850,55.85728935,160.59,160.58,0.02]
[1754152458051,71.84429218,160.59,160.58,0.02]
[1754152458378,8.63728935,160.59,160.58,0.74]
[1754152458565,8.63728935,160.59,160.58,11.6115379]
[1754152458566,55.31728935,160.59,160.58,11.6115379]
[1754152458751,55.31728935,160.59,160.58,0.74]
[1754152459073,55.31728935,160.59,160.58,0.02]
[1754152459074,81.31728935,160.59,160.58,0.02]
[1754152459574,7.91728935,160.59,160.58,0.74]
[1754152459783,7.91728935,160.59,160.58,11.6115379]
[1754152459958,51.24569316,160.59,160.58,11.6115379]
[1754152460175,55.33728935,160.59,160.58,11.6115379]
[1754152460469,50.52569316,160.59,160.58,11.6115379]
[1754152460660,47.417425,160.66,160.58,22.4830758]
[1754152460661,44.92,160.66,160.58,22.4830758]
[1754152460874,44.92,160.66,160.59,0.72]
[1754152460875,47.42,160.65,160.59,0.72]
[1754152461058,47.42,160.65,160.64,10.8715379]
[1754152461257,4.10026728,160.65,160.64,11.5915379]
[1754152461478,3.38026728,160.68,160.64,11.5915379]
[1754152461780,47.44,160.68,160.67,10.8715379]
[1754152461965,47.44,160.68,160.6,28.27888687]
[1754152462167,47.44,160.68,160.66,10.8715379]
[1754152462885,47.44,160.68,160.67,10.8715379]
[1754152463255,17.14511104,160.73,160.67,11.4515379]
[1754152463563,17.14511104,160.73,160.64,0.58]
[1754152463564,26.0,160.69,160.64,0.58]
[1754152463762,26.0,160.69,160.6,10.8715379]
[1754152463763,47.38,160.68,160.65,0.58]
[1754152463978,47.38,160.68,160.67,10.8715379]
[1754152464179,47.38,160.68,160.65,0.58]
[1754152464477,47.38,160.68,160.66,10.8715379]
[1754152464861,47.38,160.68,160.62,0.58]
[1754152464862,48.04,160.68,160.62,0.58]
[1754152465178,58.9115379,160.68,160.64,10.8715379]
[1754152465380,26.0,160.66,160.61,0.58]
[1754152465542,0.66,160.71,160.65,10.8715379]
[1754152465749,0.66,160.71,160.6,10.8715379]
[1754152465750,26.0,160.67,160.6,10.8715379]
[1754152466048,47.42,160.66,160.61,0.58]
[1754152466582,47.44,160.68,160.62,16.78468397]
[1754152466754,47.44,160.68,160.63,0.58]
[1754152467075,47.44,160.68,160.67,10.8715379]
[1754152467571,47.44,160.68,160.67,11.4515379]
[1754152468170,26.0,160.71,160.67,11.4515379]
[1754152468479,12.02964611,160.73,160.7,10.8715379]
[1754152468480,8.7836028,160.73,160.7,10.8715379]
[1754152468662,47.36,160.72,160.7,10.8715379]
[1754152468989,47.36,160.72,160.7,0.58]
[1754152469483,47.36,160.72,160.66,16.78468397]
[1754152469658,47.36,160.72,160.71,0.58]
[1754152469858,3.24660515,160.77,160.71,11.4515379]
[1754152469859,47.36,160.74,160.71,11.4515379]
[1754152470058,47.36,160.75,160.73,10.8715379]
[1754152470275,0.66,160.81,160.74,11.4515379]
[1754152470463,0.03,160.82,160.75,0.58]
[1754152470670,47.38,160.8,160.72,0.58]
[1754152470866,48.04,160.8,160.77,10.8715379]
[1754152471193,0.66,160.79,160.77,10.8715379]
[1754152471363,26.0,160.78,160.77,10.8715379]
[1754152471561,0.66,160.79,160.77,10.8715379]
[1754152471899,26.0,160.78,160.77,10.8715379]
[1754152472311,26.0,160.77,160.76,10.8715379]
[1754152472607,74.04,160.77,160.76,10.8715379]
[1754152472914,74.04,160.77,160.75,10.8715379]
[1754152473208,73.38,160.77,160.76,10.8715379]
[1754152473407,47.38,160.77,160.76,10.8715379]
[1754152473692,47.36,160.79,160.76,10.8715379]
[1754152473878,47.36,160.79,160.78,10.8715379]
[1754152474080,47.36,160.79,160.78,11.4515379]
[1754152474278,0.03,160.82,160.78,11.4515379]
[1754152474597,0.03,160.82,160.81,10.8715379]
[1754152474800,47.41,160.82,160.81,10.8715379]
[1754152475881,47.41,160.82,160.8,10.8715379]
[1754152475882,52.62368242,160.82,160.8,10.8715379]
[1754152476199,73.41,160.82,160.81,10.8715379]
[1754152476565,26.03,160.82,160.81,10.8715379]
[1754152476769,73.39,160.82,160.81,10.8715379]
[1754152477972,0.03,160.82,160.81,11.4515379]
[1754152478368,0.03,160.82,160.78,0.58]
[1754152478569,0.03,160.82,160.81,10.8715379]
[1754152479197,26.69,160.82,160.81,10.8715379]
[1754152479494,26.03,160.82,160.81,10.8715379]
[1754152480204,26.03,160.82,160.74,0.62212268]
[1754152480205,26.0,160.81,160.8,10.8715379]
[1754152480371,73.34,160.81,160.8,10.8715379]
[1754152480801,74.0,160.81,160.73,0.58]
[1754152480980,0.66,160.8,160.76,10.8715379]
[1754152481295,0.66,160.8,160.71,0.58]
[1754152481296,0.66,160.79,160.78,10.8715379]
[1754152482002,26.0,160.77,160.75,10.8715379]
[1754152482176,47.98,160.76,160.75,10.8715379]
[1754152482376,47.98,160.76,160.74,10.8715379]
[1754152482813,0.66,160.75,160.69,0.58]
[1754152483105,0.66,160.75,160.74,10.8715379]
[1754152483289,47.32,160.76,160.74,10.8715379]
[1754152483487,47.32,160.76,160.75,10.8715379]
[1754152483688,47.98,160.76,160.69,0.58]
[1754152483891,47.98,160.76,160.74,10.8715379]
[1754152484086,0.66,160.75,160.74,10.8715379]
[1754152484503,47.32,160.76,160.74,10.8715379]
[1754152484811,47.26,160.77,160.75,10.8715379]
[1754152485112,47.26,160.77,160.76,10.8715379]
[1754152485885,47.92,160.77,160.75,10.8715379]
[1754152486108,47.92,160.77,160.76,10.8715379]
[1754152486514,47.92,160.77,160.75,10.8715379]
[1754152486718,0.66,160.76,160.75,10.8715379]
[1754152487631,47.26,160.77,160.75,10.8715379]
[1754152487807,0.03,160.81,160.76,10.8715379]
[1754152487808,26.03,160.81,160.76,10.8715379]
[1754152488118,47.18,160.8,160.79,10.8715379]
[1754152488326,47.18,160.8,160.75,0.58]
[1754152488622,47.18,160.8,160.71,0.62223881]
[1754152488623,47.18,160.8,160.79,10.8715379]
[1754152489134,0.03,160.81,160.79,22.3230758]
[1754152489297,0.03,160.82,160.8,22.3230758]
[1754152489511,0.03,160.84,160.81,12.01338977]
[1754152489697,61.734684,160.9,160.81,12.01338977]
[1754152489698,48.45,160.9,160.83,10.8715379]
[1754152489925,48.45,160.9,160.84,11.49327378]
[1754152490104,48.45,160.9,160.87,10.8715379]
[1754152490311,49.11,160.9,160.82,1.1418132]
[1754152490514,49.11,160.9,160.87,10.8715379]
[1754152490923,49.11,160.9,160.81,0.62185187]
[1754152491130,49.11,160.9,160.87,10.8715379]
[1754152491332,49.15,160.88,160.87,10.8715379]
[1754152492320,48.49,160.88,160.87,10.8715379]
[1754152493208,49.15,160.88,160.87,10.8715379]
[1754152494833,48.49,160.88,160.83,0.52]
[1754152495120,48.49,160.88,160.87,10.8715379]
[1754152499629,48.49,160.88,160.84,0.52]
[1754152499630,48.49,160.88,160.81,0.62185187]
[1754152499827,48.49,160.88,160.8,10.8715379]
[1754152499828,0.66,160.87,160.86,10.8715379]
[1754152500134,0.66,160.87,160.85,10.8715379]
[1754152500135,26.0,160.86,160.85,10.8715379]
[1754152500343,0.03,160.88,160.85,10.8715379]
[1754152500543,0.03,160.88,160.87,10.8715379]
[1754152500713,48.23,160.88,160.87,10.8715379]
[1754152501137,48.23,160.88,160.87,11.3915379]
[1754152501654,0.03,160.9,160.88,16.78468397]
[1754152501963,48.16,160.94,160.89,10.8715379]
[1754152502114,53.44915177,160.93,160.92,10.8715379]
[1754152502443,48.9,160.93,160.92,10.8715379]
[1754152502616,48.18,160.93,160.92,10.8715379]
[1754152503322,48.18,160.93,160.82,10.0]
[1754152503323,26.0,160.9,160.78,10.0]
[1754152503515,52.95401709,160.89,160.87,10.8715379]
[1754152503721,26.0,160.86,160.79,0.49]
[1754152503956,0.72,160.88,160.85,10.8715379]
[1754152504248,48.12,160.87,160.85,10.8715379]
[1754152504429,0.72,160.86,160.85,10.8715379]
[1754152504608,48.12,160.87,160.85,10.8715379]
[1754152504815,48.12,160.87,160.86,10.8715379]
[1754152505039,48.08,160.88,160.86,10.8715379]
[1754152505315,48.08,160.88,160.87,10.8715379]
[1754152505749,48.08,160.88,160.83,0.06]
[1754152505926,4.82134229,160.87,160.83,0.06]
[1754152506125,4.82134229,160.87,160.85,0.06]
[1754152506311,4.10134229,160.87,160.86,10.8715379]
[1754152506660,48.09,160.9,160.86,11.3615379]
[1754152506817,0.03,160.9,160.89,21.7430758]
[1754152507548,0.03,160.9,160.89,22.2330758]
[1754152508419,0.03,160.92,160.89,22.2330758]
[1754152508647,0.03,160.92,160.91,10.8715379]
[1754152510433,4.13272394,160.92,160.91,10.8715379]
[1754152510751,0.03,160.92,160.91,10.8715379]
[1754152511126,4.85260546,160.92,160.86,1.11165858]
[1754152511326,4.85260546,160.92,160.91,10.8715379]
[1754152511576,9.41508534,160.92,160.91,10.8715379]
[1754152511876,9.41508534,160.92,160.9,10.8715379]
[1754152512016,8.66508534,160.91,160.89,10.8715379]
[1754152512220,57.24508534,160.9,160.85,0.06]
[1754152512444,8.66508534,160.89,160.86,0.49]
[1754152512658,0.03,160.92,160.89,16.78468397]
[1754152512837,0.2,160.98,160.91,36.8715379]
[1754152513036,0.2,160.98,160.97,10.8715379]
[1754152513732,0.2,160.99,160.97,22.2330758]
[1754152513932,8.35783845,161.04,161.0,21.7430758]
[1754152514137,3.24237352,161.04,161.03,10.8715379]
[1754152515019,0.2,161.05,161.03,10.8715379]
[1754152515228,0.2,161.05,160.97,26.0]
[1754152515442,0.2,161.05,161.04,10.8715379]
[1754152515640,0.2,161.05,160.95,0.49]
[1754152515965,0.2,161.05,161.04,10.8715379]
[1754152516544,0.2,161.07,161.04,11.3615379]
[1754152516743,0.2,161.07,161.0,27.65622187]
[1754152516744,0.2,161.07,161.06,10.8715379]
[1754152517243,0.2,161.07,161.06,11.3615379]
[1754152517766,0.2,161.07,161.06,10.8715379]
[1754152517942,0.2,161.07,161.01,1.11107943]
[1754152518147,0.2,161.07,161.06,10.8715379]
[1754152518967,0.92,161.07,161.06,10.8715379]
[1754152519135,49.04,161.07,161.0,10.8715379]
[1754152519338,0.72,161.06,160.99,0.62115659]
[1754152519560,0.72,161.06,161.04,10.8715379]
[1754152519760,0.72,161.06,160.94,10.0]
[1754152519761,0.72,161.06,161.01,10.8715379]
[1754152520074,48.32,161.07,161.02,10.8715379]
[1754152520075,0.72,161.05,161.02,10.8715379]
[1754152520284,0.72,161.05,161.01,10.8715379]
[1754152520490,0.72,161.05,160.93,0.49]
[1754152520491,11.5915379,161.05,160.93,0.49]
[1754152520645,74.32,161.07,161.01,10.8715379]
[1754152520845,0.72,161.04,161.01,10.8715379]
[1754152521045,10.8715379,161.02,160.91,16.78468397]
[1754152521259,59.7115379,161.01,160.9,11.3615379]
[1754152521462,10.8715379,160.98,160.94,10.8715379]
[1754152521786,74.12,161.01,160.94,10.8715379]
[1754152521787,0.72,160.97,160.94,10.8715379]
[1754152521993,48.12,160.96,160.9,10.8715379]
[1754152522277,48.12,160.96,160.88,0.49]
[1754152522485,48.12,160.96,160.86,48.14]
[1754152522486,0.72,160.95,160.86,48.76165858]
[1754152522631,0.72,160.95,160.87,16.78468397]
[1754152523042,48.12,160.96,160.89,16.78468397]
[1754152523244,48.12,160.96,160.88,1.1115813]
[1754152523245,48.12,160.96,160.95,10.8715379]
[1754152523848,59.7115379,160.96,160.91,10.8715379]
[1754152524163,59.7115379,160.96,160.86,0.49]
[1754152524164,11.5915379,160.95,160.86,0.49]
[1754152524347,0.72,160.94,160.91,10.8715379]
[1754152524547,10.8715379,160.95,160.9,10.8715379]
[1754152524774,0.72,160.93,160.9,10.8715379]
[1754152525070,0.72,160.92,160.9,10.8715379]
[1754152525377,10.8715379,160.94,160.89,10.8715379]
[1754152525378,48.72,160.91,160.89,10.8715379]
[1754152525553,48.72,160.91,160.9,10.8715379]
[1754152525971,48.72,160.91,160.89,10.8715379]
[1754152526174,48.0,160.91,160.89,10.8715379]
[1754152526377,48.0,160.91,160.85,0.06]
[1754152526544,10.8715379,160.89,160.85,0.06]
[1754152527045,0.72,160.88,160.85,0.06]
[1754152527246,0.72,160.87,160.85,0.06]
[1754152527451,47.9,160.86,160.85,0.06]
[1754152527642,48.62,160.86,160.85,0.06]
[1754152529095,47.9,160.86,160.85,0.06]
[1754152529874,48.62,160.86,160.85,0.06]
[1754152530260,47.9,160.86,160.85,10.9315379]
[1754152530872,48.57,160.86,160.85,0.06]
[1754152532398,59.4415379,160.86,160.85,0.06]
[1754152534198,48.57,160.86,160.85,0.06]
[1754152534689,47.9,160.86,160.85,10.9315379]
[1754152535389,5.02842778,160.94,160.85,10.9315379]
[1754152535390,0.67,160.92,160.85,10.9315379]
[1754152535689,47.76,160.91,160.89,10.8715379]
[1754152535993,15.99508098,161.0,160.85,0.55]
[1754152535994,0.67,160.95,160.9,10.8715379]
[1754152536168,0.67,160.95,160.92,10.8715379]
[1754152536373,5.12354308,161.04,160.85,0.68169723]
[1754152536374,74.45,160.94,160.91,10.8715379]
[1754152536684,48.45,160.94,160.92,10.8715379]
[1754152536871,0.67,160.93,160.89,10.8715379]
[1754152537052,11.5415379,160.93,160.88,10.8715379]
[1754152537260,26.0,160.91,160.85,0.06]
[1754152537585,47.76,160.9,160.88,10.8715379]
[1754152537886,0.67,160.89,160.86,10.8715379]
[1754152538093,0.67,160.89,160.87,10.8715379]
[1754152538262,0.67,160.89,160.85,0.06]
[1754152538263,47.76,160.9,160.85,0.06]
[1754152538456,11.5415379,160.89,160.85,0.06]
[1754152538991,11.5415379,160.88,160.85,0.06]
[1754152539288,0.67,160.88,160.85,0.06]
[1754152539486,11.5415379,160.87,160.85,0.06]
[1754152539686,58.5515379,160.86,160.85,0.06]
[1754152539899,59.2215379,160.86,160.85,0.06]
[1754152541703,76.00622187,160.86,160.85,0.06]
[1754152541875,76.00622187,160.86,160.83,0.06]
[1754152541876,42.78468397,160.84,160.83,0.06]
[1754152542204,42.78468397,160.84,160.72,10.8715379]
[1754152542205,26.0,160.8,160.72,10.8715379]
[1754152542365,26.0,160.8,160.71,10.871538]
[1754152542366,10.8715379,160.78,160.73,10.8715379]
[1754152542696,11.5415379,160.78,160.73,10.8715379]
[1754152544189,0.67,160.78,160.73,10.8715379]
[1754152544388,11.5415379,160.78,160.73,10.8715379]
[1754152544584,0.67,160.78,160.73,10.8715379]
[1754152544896,11.5415379,160.78,160.74,10.8715379]
[1754152545076,11.5415379,160.77,160.73,10.8715379]
[1754152545274,11.5415379,160.77,160.72,10.8715379]
[1754152545275,48.21,160.76,160.72,10.8715379]
[1754152545786,11.5415379,160.75,160.7,10.8715379]
[1754152546099,11.5415379,160.74,160.7,10.8715379]
[1754152546391,47.5,160.73,160.7,10.8715379]
[1754152546904,47.5,160.73,160.71,0.61]
[1754152547204,47.5,160.73,160.72,10.8715379]
[1754152547405,47.5,160.73,160.71,0.61]
[1754152547709,47.5,160.73,160.72,10.8715379]
[1754152547902,47.48,160.75,160.72,11.4815379]
[1754152548064,47.48,160.75,160.73,10.8715379]
[1754152550018,47.48,160.75,160.74,10.8715379]
[1754152550995,11.5415379,160.78,160.74,10.8715379]
[1754152551197,47.5,160.77,160.73,10.8715379]
[1754152551393,58.3715379,160.77,160.72,10.9315379]
[1754152551726,58.3715379,160.77,160.72,0.06]
[1754152551727,26.67,160.76,160.72,0.06]
[1754152551880,10.8715379,160.73,160.72,0.06]
[1754152552085,58.3715379,160.73,160.72,0.06]
[1754152552382,59.0415379,160.73,160.72,0.06]
[1754152555394,75.82622187,160.73,160.72,0.06]
[1754152558087,79.07544593,160.73,160.72,0.06]
[1754152559781,14.79076196,160.73,160.72,0.06]
[1754152559984,62.11076196,160.73,160.72,0.06]
[1754152560317,61.42076196,160.73,160.72,0.06]
[1754152560514,62.09076196,160.73,160.72,0.06]
[1754152560728,10.8715379,160.75,160.72,0.06]
[1754152560885,47.3,160.73,160.72,0.06]
[1754152561601,47.3,160.73,160.72,0.67]
[1754152561998,47.3,160.73,160.72,0.06]
[1754152562517,47.3,160.73,160.72,11.5415379]
[1754152562719,8.2620407,160.76,160.72,11.5415379]
[1754152562924,47.28,160.75,160.73,0.61]
[1754152563217,47.28,160.75,160.74,10.8715379]
[1754152563418,47.28,160.75,160.74,11.4815379]
[1754152563583,8.2620407,160.76,160.74,11.4815379]
[1754152563780,8.2620407,160.76,160.73,10.8715379]
[1754152564192,8.2620407,160.76,160.73,11.4815379]
[1754152564495,8.2620407,160.76,160.73,0.61]
[1754152564694,8.2620407,160.76,160.73,10.8715379]
[1754152564995,10.8715379,160.74,160.72,0.06]
[1754152565200,47.22,160.73,160.72,0.06]
[1754152566989,47.93,160.73,160.72,0.06]
[1754152567195,47.22,160.73,160.72,0.06]
[1754152567819,84.8015379,160.73,160.72,0.06]
[1754152568114,58.8015379,160.73,160.72,0.06]
[1754152568912,58.8015379,160.73,160.7,0.06]
[1754152568913,36.8715379,160.71,160.7,0.06]
[1754152569114,83.9715379,160.71,160.7,0.06]
[1754152569316,84.6815379,160.71,160.7,0.06]
[1754152570393,73.81,160.71,160.7,0.06]
[1754152570592,84.6815379,160.71,160.7,0.06]
[1754152571930,112.33775977,160.71,160.7,0.06]
[1754152572938,16.78468397,160.7,160.68,0.1]
[1754152573091,57.8515379,160.69,160.68,0.1]
[1754152573420,75.34622187,160.69,160.68,0.1]
[1754152573799,11.5815379,160.69,160.68,0.1]
[1754152573996,57.8315379,160.69,160.68,0.1]
[1754152574402,58.5415379,160.69,160.68,0.1]
[1754152574901,84.5015379,160.69,160.68,0.1]
[1754152575217,83.7915379,160.69,160.68,0.1]
[1754152576416,46.92,160.69,160.68,0.1]
[1754152578820,46.92,160.69,160.68,0.77]
[1754152579022,46.92,160.69,160.68,0.1]
[1754152580028,46.92,160.69,160.68,0.77]
[1754152580191,46.92,160.69,160.68,11.6415379]
[1754152580621,46.78,160.7,160.68,11.6415379]
[1754152580930,46.76,160.71,160.69,11.5415379]
[1754152581115,46.76,160.71,160.7,11.5415379]
[1754152583125,46.7,160.73,160.7,11.5415379]
[1754152583340,8.2620407,160.76,160.72,10.8715379]
[1754152583545,8.2620407,160.76,160.68,0.72235499]
[1754152583546,8.2620407,160.76,160.73,0.67]
[1754152583850,46.68,160.75,160.73,10.8715379]
[1754152584546,58.2615379,160.75,160.71,10.8715379]
[1754152584908,58.2615379,160.75,160.68,0.1]
[1754152584909,10.8715379,160.73,160.68,0.1]
[1754152585115,46.64,160.72,160.69,10.8715379]
[1754152585329,46.64,160.72,160.7,10.8715379]
[1754152586059,46.64,160.72,160.68,0.1]
[1754152586060,58.2215379,160.72,160.68,10.9715379]
[1754152586218,46.64,160.72,160.68,0.1]
[1754152586424,46.58,160.72,160.71,10.8715379]
[1754152586779,8.2620407,160.76,160.71,11.5415379]
[1754152586958,8.2620407,160.76,160.75,10.8715379]
[1754152587111,8.2620407,160.76,160.75,11.5415379]
[1754152587458,54.8420407,160.76,160.75,11.5415379]
[1754152588259,54.8420407,160.76,160.75,10.8715379]
[1754152588418,54.8420407,160.76,160.73,10.8715379]
[1754152588854,54.8220407,160.76,160.75,10.8715379]
[1754152589150,54.8220407,160.76,160.75,11.5415379]
[1754152590320,54.8220407,160.76,160.72,0.67]
[1754152590524,54.8220407,160.76,160.74,10.8715379]
[1754152590728,55.5320407,160.76,160.74,10.8715379]
[1754152590962,55.5320407,160.76,160.68,0.1]
[1754152590963,0.69,160.75,160.68,0.1]
[1754152591265,46.48,160.74,160.72,10.8715379]
[1754152591471,47.17,160.74,160.71,10.8715379]
[1754152591628,11.5615379,160.73,160.69,10.8715379]
[1754152591830,47.15,160.72,160.69,10.8715379]
[1754152592436,46.46,160.72,160.68,0.1]
[1754152592771,46.46,160.72,160.71,10.8715379]
[1754152593125,46.44,160.74,160.71,11.5315379]
[1754152593348,46.44,160.74,160.73,10.8715379]
[1754152593549,54.7120407,160.76,160.73,11.5315379]
[1754152593867,54.7120407,160.76,160.75,10.8715379]
[1754152594839,54.7120407,160.76,160.71,10.8715379]
[1754152594840,66.2735786,160.76,160.71,10.8715379]
[1754152595031,10.8715379,160.74,160.7,10.8715379]
[1754152595237,46.4,160.73,160.7,10.8715379]
[1754152595455,46.4,160.73,160.71,10.8715379]
[1754152595773,46.4,160.73,160.72,10.8715379]
[1754152596353,46.4,160.73,160.68,0.76]
[1754152596537,47.09,160.73,160.71,10.8715379]
[1754152596938,47.09,160.73,160.69,10.8715379]
[1754152597347,46.32,160.72,160.68,0.72235499]
[1754152597562,46.32,160.72,160.71,10.8715379]
[1754152598971,47.01,160.72,160.7,10.8715379]
[1754152599161,47.01,160.72,160.69,10.8715379]
[1754152599754,47.01,160.72,160.7,10.8715379]
[1754152600568,47.01,160.72,160.69,10.8715379]
[1754152600893,46.32,160.72,160.7,10.8715379]
[1754152602362,47.01,160.72,160.68,0.1]
[1754152602559,47.01,160.72,160.7,10.8715379]
[1754152603764,0.69,160.71,160.69,10.8715379]
[1754152603970,46.87,160.7,160.68,0.1]
[1754152604181,46.18,160.7,160.68,10.9715379]
[1754152605384,46.87,160.7,160.68,10.9715379]
[1754152605885,46.18,160.7,160.68,10.9715379]
[1754152606275,46.87,160.7,160.68,10.9715379]
[1754152607175,11.5615379,160.69,160.68,0.1]
[1754152607696,11.5615379,160.69,160.66,0.06]
[1754152607697,26.0,160.67,160.66,0.06]
[1754152607890,36.8715379,160.67,160.66,0.06]
[1754152608192,83.6615379,160.67,160.66,0.06]
[1754152608565,86.91135469,160.67,160.66,0.06]
[1754152608887,60.91135469,160.67,160.66,0.06]
[1754152609085,50.03981679,160.67,160.66,0.06]
[1754152609261,60.91135469,160.67,160.66,0.06]
[1754152611174,81.81709505,160.67,160.66,0.06]
[1754152611502,89.62640308,160.67,160.66,0.06]
[1754152614695,96.39688469,160.67,160.66,0.06]
[1754152615003,100.51154484,160.67,160.66,0.06]
[1754152615181,96.39688469,160.67,160.66,0.06]
[1754152615787,100.50927863,160.67,160.66,0.06]
[1754152616303,100.38927863,160.67,160.66,0.06]
[1754152616671,109.77039186,160.67,160.65,0.06]
[1754152617002,109.77039186,160.67,160.64,0.06]
[1754152617003,40.26792384,160.66,160.64,0.06]
[1754152617203,10.8715379,160.59,160.58,0.02]
[1754152617376,56.8715379,160.59,160.58,0.02]
[1754152617719,57.5615379,160.59,160.58,0.02]
[1754152617998,81.80756173,160.59,160.58,0.02]
[1754152618200,35.80756173,160.59,160.58,0.02]
[1754152618397,14.0594309,160.59,160.58,0.02]
[1754152618707,59.6894309,160.59,160.58,0.02]
[1754152618909,60.3794309,160.59,160.58,0.02]
[1754152619201,3.187893,160.59,160.58,0.02]
[1754152619407,60.3994309,160.59,160.58,0.02]
[1754152620191,2.497893,160.59,160.58,0.02]
[1754152620578,46.36,160.59,160.58,11.5515379]
[1754152620780,46.36,160.59,160.58,0.02]
[1754152620781,57.2315379,160.59,160.58,0.02]
[1754152621604,57.9215379,160.59,160.58,0.02]
[1754152621976,46.36,160.59,160.58,0.02]
[1754152622179,72.36,160.59,160.58,0.02]
[1754152622521,57.9215379,160.59,160.58,0.02]
[1754152623178,83.2315379,160.59,160.58,0.02]
[1754152623381,72.36,160.59,160.58,0.02]
[1754152623602,7.809308,160.62,160.58,11.5915379]
[1754152623907,46.42,160.61,160.59,11.5715379]
[1754152624102,46.42,160.61,160.6,0.7]
[1754152624481,46.42,160.61,160.6,11.5715379]
[1754152624980,46.42,160.61,160.6,0.7]
[1754152625221,46.42,160.61,160.58,0.02]
[1754152625425,10.8715379,160.59,160.58,0.02]
[1754152625718,57.2915379,160.59,160.58,0.02]
[1754152626097,46.42,160.59,160.58,0.02]
[1754152626412,57.2915379,160.59,160.58,0.02]
[1754152628619,95.5530759,160.59,160.58,0.02]
[1754152628815,72.80443751,160.59,160.58,0.02]
[1754152629678,61.93289961,160.59,160.58,0.02]
[1754152629885,72.80443751,160.59,160.58,0.02]
[1754152631196,89.58912148,160.59,160.58,0.02]
[1754152631939,78.71758358,160.59,160.58,0.02]
[1754152632144,89.58912148,160.59,160.58,0.02]
[1754152632936,97.39842951,160.59,160.58,0.02]
[1754152633233,40.10689161,160.59,160.58,0.02]
[1754152633434,72.17443751,160.59,160.58,0.02]
[1754152633647,89.64912148,160.59,160.58,0.02]
[1754152633815,97.45842951,160.59,160.58,0.02]
[1754152635445,14.82289961,160.59,160.58,0.02]
[1754152635761,72.15443751,160.59,160.58,0.02]
[1754152635938,60.58289951,160.59,160.58,0.02]
[1754152637130,60.58289951,160.59,160.58,0.08]
[1754152642069,46.46,160.59,160.58,0.78]
[1754152642290,46.46,160.59,160.58,0.08]
[1754152642952,57.3315379,160.59,160.58,0.08]
[1754152644898,70.46711154,160.59,160.58,0.08]
[1754152645058,53.68242757,160.59,160.58,0.08]
[1754152645259,29.2507989,160.6,160.58,0.08]
[1754152645487,46.24,160.59,160.58,0.08]
[1754152646068,46.24,160.59,160.58,7.31242757]
[1754152646270,46.24,160.59,160.58,0.78]
[1754152646494,46.24,160.59,160.58,0.08]
[1754152646854,46.24,160.59,160.58,7.31242757]
[1754152647580,3.28028359,160.64,160.58,7.31242757]
[1754152647885,46.22,160.63,160.6,6.53242757]
[1754152648099,46.22,160.63,160.61,0.7]
[1754152648253,46.22,160.63,160.61,6.53242757]
[1754152648579,46.22,160.63,160.61,7.23242757]
[1754152649367,46.22,160.63,160.61,0.7]
[1754152649578,46.22,160.63,160.61,7.23242757]
[1754152650376,46.22,160.63,160.61,0.7]
[1754152651563,46.22,160.63,160.62,7.18242757]
[1754152652390,0.03,160.64,160.62,7.18242757]
[1754152652606,0.03,160.64,160.63,6.53242757]
[1754152652897,0.03,160.64,160.63,7.18242757]
[1754152653062,0.03,160.64,160.6,6.53242757]
[1754152653063,7.25242757,160.64,160.6,6.53242757]
[1754152653261,46.12,160.63,160.6,6.53242757]